[Event "Early-Titled-Tuesday-Blitz-May-14-2024"]
[Site "Chess.com"]
[Date "2024.05.14"]
[Round "3"]
[White "ChadBiryani"]
[Black "MatthewG-p4p"]
[Result "0-1"]
[WhiteElo "2538"]
[BlackElo "2831"]
[TimeControl "180+1"]
[EndTime "8:28:52 PDT"]
[Termination "MatthewG-p4p won by resignation"]

1. c4 {[%clk 0:03:00.9]} 1... e6 {[%clk 0:02:58]} 2. g3 {[%clk 0:03:00.4]} 2...
d5 {[%clk 0:02:58.7]} 3. Bg2 {[%clk 0:03:00.6]} 3... Nf6 {[%clk 0:02:55.7]} 4.
Nf3 {[%clk 0:03:00.7]} 4... dxc4 {[%clk 0:02:55.8]} 5. Na3 {[%clk 0:02:59.4]}
5... c5 {[%clk 0:02:24.3]} 6. Nxc4 {[%clk 0:02:48.7]} 6... Nc6 {[%clk 0:02:24]}
7. O-O {[%clk 0:02:44.9]} 7... Be7 {[%clk 0:02:24.1]} 8. b3 {[%clk 0:02:43.9]}
8... O-O {[%clk 0:02:23.1]} 9. Bb2 {[%clk 0:02:44]} 9... Nd5 {[%clk 0:02:23.8]}
10. Rc1 {[%clk 0:02:42]} 10... Bf6 {[%clk 0:02:22.8]} 11. d4 {[%clk 0:02:36]}
11... cxd4 {[%clk 0:02:17.7]} 12. Nxd4 {[%clk 0:02:34.9]} 12... Bd7 {[%clk
0:02:13.2]} 13. Nb5 {[%clk 0:02:24.4]} 13... Bxb2 {[%clk 0:02:12.2]} 14. Nxb2
{[%clk 0:02:25.3]} 14... Qa5 {[%clk 0:02:06.6]} 15. Nd6 {[%clk 0:02:19.4]} 15...
Qxa2 {[%clk 0:01:54.5]} 16. Nbc4 {[%clk 0:02:11.6]} 16... Ncb4 {[%clk 0:01:32]}
17. Be4 {[%clk 0:01:57.6]} 17... Qa6 {[%clk 0:01:22.5]} 18. Bb1 {[%clk
0:01:48.7]} 18... b5 {[%clk 0:01:19.6]} 19. e4 {[%clk 0:00:55]} 19... bxc4
{[%clk 0:01:18]} 20. exd5 {[%clk 0:00:49]} 20... Qxd6 {[%clk 0:01:13.6]} 21.
Rxc4 {[%clk 0:00:41.5]} 21... Nxd5 {[%clk 0:00:39.3]} 22. Bxh7+ {[%clk
0:00:40.2]} 22... Kxh7 {[%clk 0:00:38.9]} 23. Qh5+ {[%clk 0:00:40.9]} 23... Kg8
{[%clk 0:00:39.4]} 24. Rh4 {[%clk 0:00:41.6]} 24... f6 {[%clk 0:00:28.4]} 25.
Rd1 {[%clk 0:00:30]} 25... Qe5 {[%clk 0:00:26.6]} 26. Qh7+ {[%clk 0:00:26.1]}
26... Kf7 {[%clk 0:00:26.6]} 27. Rh5 {[%clk 0:00:19.3]} 27... Rh8 {[%clk
0:00:22.8]} 0-1

[Event "Early-Titled-Tuesday-Blitz-May-14-2024"]
[Site "Chess.com"]
[Date "2024.05.14"]
[Round "3"]
[White "lamomiajunior"]
[Black "Payyappat"]
[Result "1-0"]
[WhiteElo "2769"]
[BlackElo "2526"]
[TimeControl "180+1"]
[EndTime "8:28:52 PDT"]
[Termination "lamomiajunior won by checkmate"]

1. d4 {[%clk 0:03:00.9]} 1... Nf6 {[%clk 0:02:59.2]} 2. Nc3 {[%clk 0:03:00]}
2... d5 {[%clk 0:02:58.4]} 3. Bf4 {[%clk 0:03:00.5]} 3... c5 {[%clk 0:02:57.5]}
4. e4 {[%clk 0:02:59.5]} 4... Nc6 {[%clk 0:02:56.5]} 5. Nb5 {[%clk 0:02:54.6]}
5... e5 {[%clk 0:02:52.1]} 6. dxe5 {[%clk 0:02:54.4]} 6... Nxe4 {[%clk
0:02:32.4]} 7. Qxd5 {[%clk 0:02:53.1]} 7... Qxd5 {[%clk 0:02:26.2]} 8. Nc7+
{[%clk 0:02:53.3]} 8... Kd8 {[%clk 0:02:26.8]} 9. Nxd5 {[%clk 0:02:54]} 9... Be6
{[%clk 0:02:24.4]} 10. Nc3 {[%clk 0:02:23.5]} 10... Nxc3 {[%clk 0:02:12.7]} 11.
bxc3 {[%clk 0:02:24.4]} 11... Be7 {[%clk 0:02:08.1]} 12. Nf3 {[%clk 0:02:22.8]}
12... Kc7 {[%clk 0:02:07.3]} 13. Bd3 {[%clk 0:02:18.9]} 13... Rad8 {[%clk
0:02:00.9]} 14. O-O {[%clk 0:02:16.8]} 14... h6 {[%clk 0:01:56.4]} 15. h3 {[%clk
0:02:15.5]} 15... g5 {[%clk 0:01:55.5]} 16. Bg3 {[%clk 0:02:10.7]} 16... h5
{[%clk 0:01:43.9]} 17. Nd2 {[%clk 0:02:01.4]} 17... h4 {[%clk 0:00:53.4]} 18.
Bh2 {[%clk 0:01:56.9]} 18... Na5 {[%clk 0:00:49]} 19. Rfd1 {[%clk 0:01:49.2]}
19... c4 {[%clk 0:00:48.5]} 20. Be4 {[%clk 0:01:48.8]} 20... Bc5 {[%clk
0:00:25.8]} 21. Bf3 {[%clk 0:01:46.6]} 21... Rd7 {[%clk 0:00:19.1]} 22. Ne4
{[%clk 0:01:45.4]} 22... Bb6 {[%clk 0:00:16.6]} 23. Rd6 {[%clk 0:01:41]} 23...
Rhd8 {[%clk 0:00:11.1]} 24. Nxg5 {[%clk 0:01:40.5]} 24... Bc5 {[%clk 0:00:09.6]}
25. Nxe6+ {[%clk 0:01:36.1]} 25... fxe6 {[%clk 0:00:08.8]} 26. Rxe6 {[%clk
0:01:36.4]} 26... Ba3 {[%clk 0:00:07.3]} 27. Bf4 {[%clk 0:01:34.4]} 27... Bb2
{[%clk 0:00:07]} 28. Rb1 {[%clk 0:01:34.8]} 28... Bxc3 {[%clk 0:00:07]} 29. Rg6
{[%clk 0:01:31.6]} 29... Rf7 {[%clk 0:00:06.8]} 30. g3 {[%clk 0:01:28.3]} 30...
hxg3 {[%clk 0:00:01.6]} 31. fxg3 {[%clk 0:01:29.2]} 31... Re7 {[%clk 0:00:01.8]}
32. Bg5 {[%clk 0:01:26.4]} 32... Rxe5 {[%clk 0:00:00.8]} 33. Bxd8+ {[%clk
0:01:26.3]} 33... Kxd8 {[%clk 0:00:01.7]} 34. Rd1+ {[%clk 0:01:25.4]} 34... Kc7
{[%clk 0:00:02]} 35. h4 {[%clk 0:01:24.3]} 35... b5 {[%clk 0:00:01.6]} 36. h5
{[%clk 0:01:24.1]} 36... b4 {[%clk 0:00:00.5]} 37. h6 {[%clk 0:01:23.5]} 37...
Rf5 {[%clk 0:00:00.7]} 38. Kg2 {[%clk 0:01:22.5]} 38... b3 {[%clk 0:00:00.3]}
39. axb3 {[%clk 0:01:22.3]} 39... cxb3 {[%clk 0:00:01.2]} 40. cxb3 {[%clk
0:01:23.1]} 40... Nxb3 {[%clk 0:00:02.1]} 41. Rc1 {[%clk 0:01:23.2]} 41... Rc5
{[%clk 0:00:02.4]} 42. Rxc3 {[%clk 0:01:19]} 42... Rxc3 {[%clk 0:00:03.3]} 43.
h7 {[%clk 0:01:19.2]} 43... Rc2+ {[%clk 0:00:03.3]} 44. Kh3 {[%clk 0:01:19.3]}
44... Nd4 {[%clk 0:00:03.4]} 45. h8=Q {[%clk 0:01:19.4]} 45... Nxf3 {[%clk
0:00:04.3]} 46. Qg7+ {[%clk 0:01:17.6]} 46... Kc8 {[%clk 0:00:04]} 47. Qf8+
{[%clk 0:01:17.9]} 47... Kd7 {[%clk 0:00:04.4]} 48. Qxf3 {[%clk 0:01:18.8]}
48... Ke7 {[%clk 0:00:04.2]} 49. Qf6+ {[%clk 0:01:18.6]} 49... Ke8 {[%clk
0:00:04.4]} 50. Rg7 {[%clk 0:01:19.5]} 50... Rh2+ {[%clk 0:00:04]} 51. Kxh2
{[%clk 0:01:19.1]} 51... a5 {[%clk 0:00:04.9]} 52. Qe7# {[%clk 0:01:19.4]} 1-0

[Event "Early-Titled-Tuesday-Blitz-May-14-2024"]
[Site "Chess.com"]
[Date "2024.05.14"]
[Round "3"]
[White "FREDERICKtheMATE"]
[Black "Actuary44"]
[Result "1-0"]
[WhiteElo "2687"]
[BlackElo "2490"]
[TimeControl "180+1"]
[EndTime "8:28:54 PDT"]
[Termination "FREDERICKtheMATE won on time"]

1. d4 {[%clk 0:02:57]} 1... Nf6 {[%clk 0:03:00.4]} 2. c4 {[%clk 0:02:57.1]} 2...
g6 {[%clk 0:03:01]} 3. Nf3 {[%clk 0:02:57.6]} 3... Bg7 {[%clk 0:03:01.6]} 4. Nc3
{[%clk 0:02:57.9]} 4... d6 {[%clk 0:03:02.3]} 5. e4 {[%clk 0:02:58.1]} 5... O-O
{[%clk 0:03:03]} 6. Be2 {[%clk 0:02:58.4]} 6... e5 {[%clk 0:03:03.3]} 7. Be3
{[%clk 0:02:58.9]} 7... Nc6 {[%clk 0:03:03.1]} 8. d5 {[%clk 0:02:58.2]} 8... Ne7
{[%clk 0:03:03.7]} 9. Nd2 {[%clk 0:02:58.8]} 9... Ne8 {[%clk 0:03:03.9]} 10. b4
{[%clk 0:02:57.6]} 10... f5 {[%clk 0:03:03.6]} 11. f3 {[%clk 0:02:58]} 11... f4
{[%clk 0:03:04]} 12. Bf2 {[%clk 0:02:57.8]} 12... g5 {[%clk 0:03:04]} 13. c5
{[%clk 0:02:57.3]} 13... Rf6 {[%clk 0:03:03.9]} 14. h3 {[%clk 0:02:54.2]} 14...
h5 {[%clk 0:03:03.1]} 15. Nc4 {[%clk 0:02:53.4]} 15... Rg6 {[%clk 0:03:00.7]}
16. Kd2 {[%clk 0:02:40.4]} 16... b6 {[%clk 0:02:54.4]} 17. a4 {[%clk 0:02:34]}
17... bxc5 {[%clk 0:02:50.7]} 18. bxc5 {[%clk 0:02:33.9]} 18... c6 {[%clk
0:02:47.8]} 19. cxd6 {[%clk 0:02:13.8]} 19... Nxd6 {[%clk 0:02:45.4]} 20. Bc5
{[%clk 0:02:13.4]} 20... Nb7 {[%clk 0:02:18.9]} 21. Bxe7 {[%clk 0:02:12.3]}
21... Qxe7 {[%clk 0:02:18.9]} 22. dxc6 {[%clk 0:02:12.3]} 22... Rxc6 {[%clk
0:02:10.6]} 23. Nd5 {[%clk 0:02:12.4]} 23... Qc5 {[%clk 0:02:05.6]} 24. Qb3
{[%clk 0:01:58.5]} 24... Qd4+ {[%clk 0:01:26.9]} 25. Bd3 {[%clk 0:01:57.7]}
25... Nc5 {[%clk 0:01:26.1]} 26. Qc3 {[%clk 0:01:44.6]} 26... Qxc3+ {[%clk
0:00:11.5]} 27. Kxc3 {[%clk 0:01:41.8]} 27... Bf8 {[%clk 0:00:11.8]} 28. Nxe5
{[%clk 0:01:32.7]} 28... Re6 {[%clk 0:00:07.4]} 29. Bc4 {[%clk 0:01:16]} 29...
Kh7 {[%clk 0:00:05.6]} 30. Nc7 {[%clk 0:01:10.1]} 30... Rxe5 {[%clk 0:00:06.1]}
31. Nxa8 {[%clk 0:01:09.9]} 31... Bg7 {[%clk 0:00:06.7]} 32. Kb4 {[%clk
0:01:02.9]} 32... Nd7 {[%clk 0:00:05]} 33. Nc7 {[%clk 0:00:58.4]} 33... Rc5
{[%clk 0:00:05.2]} 34. Ne6 {[%clk 0:00:58.2]} 34... Rc6 {[%clk 0:00:04.6]} 35.
Nxg7 {[%clk 0:00:57.6]} 35... Kxg7 {[%clk 0:00:04.6]} 36. Bb5 {[%clk 0:00:58.1]}
36... Rb6 {[%clk 0:00:04.6]} 37. Rac1 {[%clk 0:00:56.9]} 37... Bb7 {[%clk
0:00:03.3]} 38. Rc7 {[%clk 0:00:56.6]} 1-0

[Event "Early-Titled-Tuesday-Blitz-May-14-2024"]
[Site "Chess.com"]
[Date "2024.05.14"]
[Round "3"]
[White "AttilaTurzo"]
[Black "Korchmar_Vasiliy"]
[Result "0-1"]
[WhiteElo "2474"]
[BlackElo "2674"]
[TimeControl "180+1"]
[EndTime "8:28:57 PDT"]
[Termination "Korchmar_Vasiliy won on time"]

1. e4 {[%clk 0:03:00.9]} 1... c5 {[%clk 0:02:59.5]} 2. c3 {[%clk 0:03:00]} 2...
d5 {[%clk 0:02:57.8]} 3. exd5 {[%clk 0:02:59.8]} 3... Nf6 {[%clk 0:02:58.4]} 4.
d4 {[%clk 0:02:58.6]} 4... Nxd5 {[%clk 0:02:57.9]} 5. c4 {[%clk 0:02:54.3]} 5...
Nf6 {[%clk 0:02:49.6]} 6. d5 {[%clk 0:02:54.3]} 6... e6 {[%clk 0:02:49.8]} 7.
Nc3 {[%clk 0:02:54.1]} 7... exd5 {[%clk 0:02:49.8]} 8. cxd5 {[%clk 0:02:52]}
8... Bd6 {[%clk 0:02:50.4]} 9. Nf3 {[%clk 0:02:44.9]} 9... O-O {[%clk
0:02:50.7]} 10. Be2 {[%clk 0:02:44.9]} 10... a6 {[%clk 0:02:38.2]} 11. a4 {[%clk
0:02:44.5]} 11... Bg4 {[%clk 0:02:34.3]} 12. O-O {[%clk 0:02:43.9]} 12... Nbd7
{[%clk 0:02:35]} 13. Be3 {[%clk 0:02:39.8]} 13... Re8 {[%clk 0:02:33.7]} 14. h3
{[%clk 0:02:35.7]} 14... Bh5 {[%clk 0:02:33.6]} 15. a5 {[%clk 0:02:30.6]} 15...
Rc8 {[%clk 0:02:29.6]} 16. Nd2 {[%clk 0:02:25.6]} 16... Bxe2 {[%clk 0:02:15.7]}
17. Qxe2 {[%clk 0:02:25.5]} 17... Bf4 {[%clk 0:02:16.2]} 18. Nc4 {[%clk
0:02:21.6]} 18... Bxe3 {[%clk 0:02:07.1]} 19. Nxe3 {[%clk 0:02:10.1]} 19... Ne5
{[%clk 0:02:07.4]} 20. Rfd1 {[%clk 0:02:05.7]} 20... c4 {[%clk 0:02:08]} 21. Rd4
{[%clk 0:01:53]} 21... Qd6 {[%clk 0:01:57.4]} 22. Qf1 {[%clk 0:01:26.4]} 22...
Qb4 {[%clk 0:01:55.9]} 23. Qb1 {[%clk 0:00:59.9]} 23... Nfd7 {[%clk 0:01:14.9]}
24. Ra4 {[%clk 0:00:47.4]} 24... Qb3 {[%clk 0:01:11.6]} 25. Ra3 {[%clk
0:00:28.6]} 25... Qb4 {[%clk 0:01:12]} 26. Ra4 {[%clk 0:00:28.9]} 26... Qc5
{[%clk 0:01:12.3]} 27. Qd1 {[%clk 0:00:16.9]} 27... b5 {[%clk 0:00:53.8]} 28.
axb6 {[%clk 0:00:15.4]} 28... Qxb6 {[%clk 0:00:54.2]} 29. Qd2 {[%clk 0:00:11.7]}
29... Nc5 {[%clk 0:00:48.2]} 30. Nxc4 {[%clk 0:00:08.4]} 30... Qg6 {[%clk
0:00:41.9]} 31. Nxe5 {[%clk 0:00:03.6]} 31... Rxe5 {[%clk 0:00:42.8]} 32. Rac4
{[%clk 0:00:03.4]} 32... Ree8 {[%clk 0:00:43.1]} 33. Rg4 {[%clk 0:00:01]} 33...
Qf6 {[%clk 0:00:42.6]} 34. Qd4 {[%clk 0:00:00.1]} 34... Re1+ {[%clk 0:00:42.3]}
0-1

[Event "Early-Titled-Tuesday-Blitz-May-14-2024"]
[Site "Chess.com"]
[Date "2024.05.14"]
[Round "3"]
[White "kanzaww"]
[Black "Chernov_Alexander_A"]
[Result "1-0"]
[WhiteElo "2491"]
[BlackElo "2271"]
[TimeControl "180+1"]
[EndTime "8:28:57 PDT"]
[Termination "kanzaww won on time"]

1. e4 {[%clk 0:03:00.9]} 1... d6 {[%clk 0:02:59.5]} 2. d4 {[%clk 0:03:00.7]}
2... Nf6 {[%clk 0:02:58.3]} 3. Nc3 {[%clk 0:02:59.2]} 3... Nbd7 {[%clk
0:02:57.4]} 4. Nf3 {[%clk 0:02:45.7]} 4... e5 {[%clk 0:02:57.1]} 5. Bc4 {[%clk
0:02:46]} 5... Be7 {[%clk 0:02:56.5]} 6. O-O {[%clk 0:02:44.5]} 6... O-O {[%clk
0:02:55.5]} 7. Re1 {[%clk 0:02:45.1]} 7... c6 {[%clk 0:02:55.6]} 8. a4 {[%clk
0:02:45.5]} 8... Qc7 {[%clk 0:02:44.1]} 9. h3 {[%clk 0:02:45]} 9... exd4 {[%clk
0:02:43.4]} 10. Nxd4 {[%clk 0:02:44.8]} 10... Ne5 {[%clk 0:02:43.4]} 11. Ba2
{[%clk 0:02:44.8]} 11... Bd7 {[%clk 0:02:41.6]} 12. f4 {[%clk 0:02:42.9]} 12...
Ng6 {[%clk 0:02:40.7]} 13. Qf3 {[%clk 0:02:43.4]} 13... Rae8 {[%clk 0:02:21.3]}
14. Be3 {[%clk 0:02:41.2]} 14... Bc8 {[%clk 0:02:19]} 15. Bf2 {[%clk 0:02:40.8]}
15... a6 {[%clk 0:02:14.8]} 16. a5 {[%clk 0:02:39.2]} 16... c5 {[%clk
0:02:14.4]} 17. Nf5 {[%clk 0:02:36.8]} 17... Bxf5 {[%clk 0:01:46.1]} 18. exf5
{[%clk 0:02:37.7]} 18... Nh8 {[%clk 0:01:45.9]} 19. Nd5 {[%clk 0:02:30]} 19...
Nxd5 {[%clk 0:01:45]} 20. Bxd5 {[%clk 0:02:30.9]} 20... Bf6 {[%clk 0:01:37.1]}
21. c3 {[%clk 0:02:27.8]} 21... b6 {[%clk 0:01:32.2]} 22. Qd3 {[%clk 0:02:21.8]}
22... b5 {[%clk 0:01:24]} 23. g4 {[%clk 0:02:19.4]} 23... g5 {[%clk 0:01:06.6]}
24. h4 {[%clk 0:01:42.5]} 24... h6 {[%clk 0:01:02.1]} 25. hxg5 {[%clk
0:01:27.6]} 25... hxg5 {[%clk 0:01:01.5]} 26. Qh3 {[%clk 0:01:24.9]} 26... gxf4
{[%clk 0:00:38.1]} 27. Qh6 {[%clk 0:01:24.4]} 27... Bg7 {[%clk 0:00:37.3]} 28.
Qxf4 {[%clk 0:01:23.9]} 28... Qd8 {[%clk 0:00:25]} 29. g5 {[%clk 0:01:23.7]}
29... Be5 {[%clk 0:00:23.6]} 30. Qh4 {[%clk 0:01:17.1]} 30... Bg7 {[%clk
0:00:07.6]} 31. f6 {[%clk 0:01:14.6]} 31... Rxe1+ {[%clk 0:00:06.9]} 32. Rxe1
{[%clk 0:01:13.4]} 32... Re8 {[%clk 0:00:06.9]} 33. fxg7 {[%clk 0:01:10.5]}
33... Rxe1+ {[%clk 0:00:05.5]} 34. Bxe1 {[%clk 0:01:11.4]} 34... Kxg7 {[%clk
0:00:05.6]} 35. Qh6+ {[%clk 0:01:09.1]} 35... Kg8 {[%clk 0:00:05.7]} 36. g6
{[%clk 0:01:00.2]} 36... Qe7 {[%clk 0:00:05.2]} 37. Qh7+ {[%clk 0:00:50.7]} 1-0

[Event "Early-Titled-Tuesday-Blitz-May-14-2024"]
[Site "Chess.com"]
[Date "2024.05.14"]
[Round "3"]
[White "ural58"]
[Black "RianKapriaga"]
[Result "1-0"]
[WhiteElo "2489"]
[BlackElo "2287"]
[TimeControl "180+1"]
[EndTime "8:28:57 PDT"]
[Termination "ural58 won on time"]

1. e4 {[%clk 0:03:00.9]} 1... c6 {[%clk 0:02:59]} 2. Nc3 {[%clk 0:02:57.8]} 2...
d5 {[%clk 0:02:58.9]} 3. Nf3 {[%clk 0:02:57.6]} 3... Bg4 {[%clk 0:02:57.6]} 4.
h3 {[%clk 0:02:57.1]} 4... Bxf3 {[%clk 0:02:56]} 5. Qxf3 {[%clk 0:02:56.9]} 5...
Nf6 {[%clk 0:02:56]} 6. e5 {[%clk 0:02:55.7]} 6... Nfd7 {[%clk 0:02:55.2]} 7.
Qg3 {[%clk 0:02:46.7]} 7... e6 {[%clk 0:02:52.7]} 8. f4 {[%clk 0:02:45.8]} 8...
g6 {[%clk 0:02:48.3]} 9. h4 {[%clk 0:02:45.4]} 9... h5 {[%clk 0:02:46.5]} 10.
Be2 {[%clk 0:02:43.2]} 10... a6 {[%clk 0:02:43.3]} 11. d4 {[%clk 0:02:39.6]}
11... c5 {[%clk 0:02:42.3]} 12. Be3 {[%clk 0:02:36.1]} 12... cxd4 {[%clk
0:02:41.4]} 13. Bxd4 {[%clk 0:02:34.7]} 13... Nc6 {[%clk 0:02:41.3]} 14. Bf2
{[%clk 0:02:33.7]} 14... Bb4 {[%clk 0:02:37.2]} 15. O-O-O {[%clk 0:02:28.9]}
15... Qa5 {[%clk 0:02:33.8]} 16. Kb1 {[%clk 0:02:19.4]} 16... Bxc3 {[%clk
0:02:32.6]} 17. Qxc3 {[%clk 0:02:16.1]} 17... Qxc3 {[%clk 0:02:31.8]} 18. bxc3
{[%clk 0:02:16.7]} 18... b5 {[%clk 0:02:27.3]} 19. g4 {[%clk 0:02:16.2]} 19...
hxg4 {[%clk 0:02:24.5]} 20. Bxg4 {[%clk 0:02:16.4]} 20... Rc8 {[%clk 0:01:57.8]}
21. h5 {[%clk 0:02:16]} 21... gxh5 {[%clk 0:01:57]} 22. Rxh5 {[%clk 0:02:13.2]}
22... Rg8 {[%clk 0:01:56.1]} 23. Bf3 {[%clk 0:02:12]} 23... Ne7 {[%clk
0:01:52.4]} 24. Bd4 {[%clk 0:01:55.3]} 24... Nc5 {[%clk 0:01:47.3]} 25. Rh7
{[%clk 0:01:36.1]} 25... Na4 {[%clk 0:01:45.1]} 26. Bh5 {[%clk 0:01:35.4]} 26...
Rf8 {[%clk 0:01:38.5]} 27. Rg1 {[%clk 0:01:31.6]} 27... Nf5 {[%clk 0:01:31.4]}
28. Rxf7 {[%clk 0:01:25]} 28... Rxf7 {[%clk 0:01:25.7]} 29. Rg8+ {[%clk
0:01:24.8]} 29... Kd7 {[%clk 0:01:24.8]} 30. Bxf7 {[%clk 0:01:20.2]} 30... Nxc3+
{[%clk 0:01:17]} 31. Bxc3 {[%clk 0:01:18.5]} 31... Rxc3 {[%clk 0:01:17.4]} 32.
Ra8 {[%clk 0:01:16.9]} 32... Ke7 {[%clk 0:01:09.9]} 33. Ra7+ {[%clk 0:01:15.9]}
33... Kf8 {[%clk 0:01:06.8]} 34. Bxe6 {[%clk 0:01:15.8]} 34... Ne3 {[%clk
0:00:50.7]} 35. f5 {[%clk 0:01:10.5]} 35... Rxc2 {[%clk 0:00:44.2]} 36. f6
{[%clk 0:01:10]} 1-0

[Event "Early-Titled-Tuesday-Blitz-May-14-2024"]
[Site "Chess.com"]
[Date "2024.05.14"]
[Round "3"]
[White "Blitz_Lover1"]
[Black "maciek_92"]
[Result "0-1"]
[WhiteElo "2324"]
[BlackElo "2805"]
[TimeControl "180+1"]
[EndTime "8:28:58 PDT"]
[Termination "maciek_92 won by resignation"]

1. e4 {[%clk 0:03:00.9]} 1... c5 {[%clk 0:02:59.7]} 2. Nf3 {[%clk 0:03:00.6]}
2... e6 {[%clk 0:03:00]} 3. d4 {[%clk 0:03:00.4]} 3... cxd4 {[%clk 0:03:00.9]}
4. Nxd4 {[%clk 0:03:01]} 4... Nc6 {[%clk 0:03:01.7]} 5. Nc3 {[%clk 0:03:00.4]}
5... a6 {[%clk 0:03:01.4]} 6. a3 {[%clk 0:02:59.5]} 6... Qc7 {[%clk 0:03:00.9]}
7. Be3 {[%clk 0:02:59]} 7... Nf6 {[%clk 0:03:00.8]} 8. f4 {[%clk 0:02:58.6]}
8... d6 {[%clk 0:02:56.8]} 9. Qf3 {[%clk 0:02:56.3]} 9... Bd7 {[%clk 0:02:54.3]}
10. O-O-O {[%clk 0:02:53.5]} 10... Rc8 {[%clk 0:02:54.2]} 11. Bd3 {[%clk
0:02:52.6]} 11... h5 {[%clk 0:02:47.5]} 12. h3 {[%clk 0:02:50.7]} 12... h4
{[%clk 0:02:47.8]} 13. Rhe1 {[%clk 0:02:33.7]} 13... Be7 {[%clk 0:02:40.5]} 14.
Kb1 {[%clk 0:02:26.6]} 14... Kf8 {[%clk 0:02:40.6]} 15. f5 {[%clk 0:02:05.3]}
15... e5 {[%clk 0:02:29]} 16. Nb3 {[%clk 0:02:01.5]} 16... Na5 {[%clk
0:02:28.1]} 17. Nxa5 {[%clk 0:01:54.9]} 17... Qxa5 {[%clk 0:02:29]} 18. Nd5
{[%clk 0:01:54.6]} 18... Nxd5 {[%clk 0:02:27.2]} 19. exd5 {[%clk 0:01:55.5]}
19... Bf6 {[%clk 0:02:17.9]} 20. Qe4 {[%clk 0:01:52.9]} 20... Bb5 {[%clk
0:02:09]} 21. Bxb5 {[%clk 0:01:38.5]} 21... Qxb5 {[%clk 0:02:08.2]} 22. Qb4
{[%clk 0:01:36.6]} 22... Qxb4 {[%clk 0:01:58.3]} 23. axb4 {[%clk 0:01:37.5]}
23... Rh5 {[%clk 0:01:58.4]} 24. Rf1 {[%clk 0:01:35]} 24... Bg5 {[%clk
0:01:43.5]} 25. Bb6 {[%clk 0:01:07.6]} 25... Rc4 {[%clk 0:01:25.6]} 26. Ba5
{[%clk 0:00:54.7]} 26... Be3 {[%clk 0:01:09.2]} 27. b3 {[%clk 0:00:51.9]} 27...
Rc8 {[%clk 0:01:08]} 28. Rf3 {[%clk 0:00:44.9]} 28... Ba7 {[%clk 0:00:54.4]} 29.
c3 {[%clk 0:00:34.9]} 29... b6 {[%clk 0:00:53.5]} 30. Bxb6 {[%clk 0:00:22]}
30... Bxb6 {[%clk 0:00:54.4]} 31. Rd2 {[%clk 0:00:22]} 31... e4 {[%clk
0:00:52.9]} 32. Rf1 {[%clk 0:00:19.3]} 32... Rxc3 {[%clk 0:00:52.3]} 33. Ra2
{[%clk 0:00:18.5]} 33... Rxb3+ {[%clk 0:00:51.4]} 34. Kc2 {[%clk 0:00:18.6]}
34... Rxb4 {[%clk 0:00:52]} 35. Rxa6 {[%clk 0:00:18.4]} 35... Ke7 {[%clk
0:00:50]} 36. f6+ {[%clk 0:00:17.3]} 36... gxf6 {[%clk 0:00:49.7]} 37. Kc3
{[%clk 0:00:16.3]} 37... Rb5 {[%clk 0:00:49]} 38. Kc4 {[%clk 0:00:15.9]} 38...
Rhxd5 {[%clk 0:00:49.1]} 39. Rxb6 {[%clk 0:00:14.3]} 39... Rdc5+ {[%clk
0:00:49.5]} 40. Kd4 {[%clk 0:00:14.4]} 40... Rxb6 {[%clk 0:00:50.4]} 41. Kxe4
{[%clk 0:00:14.6]} 41... Rb4+ {[%clk 0:00:50.7]} 42. Kf3 {[%clk 0:00:15.1]}
42... Rf5+ {[%clk 0:00:50.8]} 43. Ke2 {[%clk 0:00:14.9]} 43... Rb2+ {[%clk
0:00:51.5]} 0-1

[Event "Early-Titled-Tuesday-Blitz-May-14-2024"]
[Site "Chess.com"]
[Date "2024.05.14"]
[Round "3"]
[White "dennisodessa"]
[Black "Casablanca"]
[Result "0-1"]
[WhiteElo "2502"]
[BlackElo "2722"]
[TimeControl "180+1"]
[EndTime "8:28:59 PDT"]
[Termination "Casablanca won by checkmate"]

1. d4 {[%clk 0:03:00.9]} 1... e6 {[%clk 0:03:00.9]} 2. c4 {[%clk 0:02:59.9]}
2... b6 {[%clk 0:03:01.1]} 3. e4 {[%clk 0:02:57.9]} 3... Bb7 {[%clk 0:03:01.5]}
4. f3 {[%clk 0:02:48.6]} 4... f5 {[%clk 0:02:58.2]} 5. exf5 {[%clk 0:02:45.7]}
5... exf5 {[%clk 0:02:51.8]} 6. Nh3 {[%clk 0:02:39.1]} 6... Bb4+ {[%clk
0:02:48.4]} 7. Bd2 {[%clk 0:02:35.5]} 7... Qe7+ {[%clk 0:02:37.1]} 8. Be2 {[%clk
0:02:31.4]} 8... Nf6 {[%clk 0:02:36.8]} 9. O-O {[%clk 0:02:26.3]} 9... Bxd2
{[%clk 0:02:32.4]} 10. Qxd2 {[%clk 0:02:25]} 10... O-O {[%clk 0:02:32.5]} 11.
Nc3 {[%clk 0:02:23.6]} 11... Nc6 {[%clk 0:02:30.4]} 12. Rfe1 {[%clk 0:02:10.1]}
12... g6 {[%clk 0:02:28.3]} 13. Nf4 {[%clk 0:02:02.7]} 13... Rae8 {[%clk
0:02:17.7]} 14. Rad1 {[%clk 0:02:02.2]} 14... Qf7 {[%clk 0:02:06.9]} 15. Nb5
{[%clk 0:01:47.9]} 15... d5 {[%clk 0:01:09.2]} 16. cxd5 {[%clk 0:01:43.7]} 16...
Nd8 {[%clk 0:01:04.5]} 17. Nxa7 {[%clk 0:00:45.9]} 17... g5 {[%clk 0:00:56.7]}
18. Ne6 {[%clk 0:00:42.5]} 18... Nxe6 {[%clk 0:00:51.4]} 19. dxe6 {[%clk
0:00:43.4]} 19... Rxe6 {[%clk 0:00:48.9]} 20. Qxg5+ {[%clk 0:00:41.2]} 20... Kh8
{[%clk 0:00:49.1]} 21. Nb5 {[%clk 0:00:24.2]} 21... Rxe2 {[%clk 0:00:40.5]} 22.
Rxe2 {[%clk 0:00:19.9]} 22... Bxf3 {[%clk 0:00:41.1]} 23. Qe3 {[%clk 0:00:10.9]}
23... Bxe2 {[%clk 0:00:37.9]} 24. Qxe2 {[%clk 0:00:11.8]} 24... Re8 {[%clk
0:00:35.8]} 25. Qf3 {[%clk 0:00:10.5]} 25... Ng4 {[%clk 0:00:36.4]} 26. Nc3
{[%clk 0:00:09.2]} 26... Ne3 {[%clk 0:00:25.9]} 27. Re1 {[%clk 0:00:08.5]} 27...
Qg7 {[%clk 0:00:24.9]} 28. Qf4 {[%clk 0:00:02.3]} 28... Qxg2# {[%clk 0:00:22.3]}
0-1